bitfinex/quotes_BTCUSD_20241201
["timestamp","ask_amount","ask_price","bid_price","bid_amount"]
[1733058581802,0.00112309,97109.0,97108.0,0.2744137]
[1733058581956,0.00112309,97109.0,97108.0,0.2654137]
[1733058582171,0.00112309,97109.0,97108.0,0.2684137]
[1733058582388,0.00112309,97109.0,97108.0,0.2594137]
[1733058582604,0.00112309,97109.0,97108.0,0.2674137]
[1733058582806,0.00112309,97109.0,97108.0,0.2764137]
[1733058586322,0.00112309,97109.0,97108.0,0.2853969]
[1733058591323,0.00112309,97109.0,97108.0,0.25322841]
[1733058592004,0.00112309,97109.0,97108.0,0.28528693]
[1733058592410,0.00112309,97109.0,97108.0,0.25322841]
[1733058593508,0.00112309,97109.0,97108.0,0.28528482]
[1733058593781,0.00112309,97109.0,97108.0,0.25322841]
[1733058595509,0.00112309,97109.0,97108.0,0.27622841]
[1733058595755,0.0008634,97121.0,97117.0,0.083]
[1733058595756,0.00070811,97121.0,97117.0,0.083]
[1733058595969,0.00070811,97121.0,97118.0,0.10374993]
[1733058597992,0.00070811,97121.0,97118.0,0.11774993]
[1733058598436,0.00070811,97121.0,97118.0,0.10284521]
[1733058598645,0.00070811,97121.0,97118.0,0.11184521]
[1733058598882,0.00070811,97121.0,97118.0,0.10974993]
[1733058599332,0.00070811,97121.0,97120.0,0.11182841]
[1733058599447,0.00070811,97121.0,97120.0,0.10284521]
[1733058600909,0.00070811,97121.0,97120.0,0.11184521]
[1733058601324,0.00070811,97121.0,97120.0,0.12084521]
[1733058602553,0.00070811,97121.0,97120.0,0.12984521]
[1733058604950,0.00070811,97121.0,97120.0,0.24573306]
[1733058605216,0.0002,97129.0,97120.0,0.32567757]
[1733058605449,0.0002,97129.0,97123.0,0.26662841]
[1733058605655,0.0002,97129.0,97123.0,0.29867757]
[1733058607666,0.0002,97129.0,97123.0,0.30767757]
[1733058608083,0.0002,97129.0,97123.0,0.31567757]
[1733058610221,0.0002,97129.0,97123.0,0.30667757]
[1733058610636,0.0002,97129.0,97123.0,0.31567757]
[1733058610855,0.0002,97129.0,97123.0,0.30667757]
[1733058611104,0.0002,97129.0,97123.0,0.29867757]
[1733058611315,0.0002,97129.0,97123.0,0.31567757]
[1733058611738,0.0002,97129.0,97123.0,0.30767757]
[1733058612180,0.0002,97129.0,97123.0,0.31667757]
[1733058613814,0.0002,97149.0,97138.0,0.2148752]
[1733058614037,0.0002,97149.0,97138.0,0.50246957]
[1733058614952,0.0002,97149.0,97138.0,0.51046957]
[1733058615191,0.00023796,97139.0,97138.0,0.51046957]
[1733058615398,0.00017141,97139.0,97138.0,0.51946957]
[1733058618967,0.00017141,97139.0,97138.0,0.31357757]
[1733058620308,0.00017141,97139.0,97138.0,0.26467757]
[1733058620979,0.00017141,97139.0,97138.0,0.20962841]
[1733058621190,0.00017141,97139.0,97138.0,0.12882841]
[1733058622559,0.00017141,97139.0,97138.0,0.11984521]
[1733058623646,0.00017141,97139.0,97138.0,0.12157141]
[1733058623846,0.00103451,97139.0,97138.0,0.12157141]
[1733058631929,0.00545446,97139.0,97138.0,0.12157141]
[1733058632383,0.00401704,97139.0,97138.0,0.12157141]
[1733058635999,0.05241704,97139.0,97138.0,0.12157141]
[1733058636242,0.05571153,97139.0,97138.0,0.0187262]
[1733058636440,0.28581153,97139.0,97138.0,0.0187262]
[1733058636645,0.28353384,97139.0,97138.0,0.0187262]
[1733058636851,0.28353384,97139.0,97138.0,0.0107262]
[1733058637063,0.28353384,97139.0,97138.0,0.0017262]
[1733058637277,0.28353384,97139.0,97138.0,0.0027262]
[1733058637477,0.28353384,97139.0,97138.0,0.0077262]
[1733058637478,0.29353384,97139.0,97138.0,0.0077262]
[1733058637692,0.29353384,97139.0,97138.0,0.0017262]
[1733058638118,0.29353384,97139.0,97138.0,0.0077262]
[1733058640686,0.29353384,97139.0,97138.0,0.0017262]
[1733058640921,0.28353384,97139.0,97138.0,0.0027262]
[1733058641141,0.28251704,97139.0,97138.0,0.0087262]
[1733058641372,0.05241704,97139.0,97138.0,0.0087262]
[1733058641597,0.05469497,97139.0,97138.0,0.0087262]
[1733058647309,0.13581177,97139.0,97138.0,0.0087262]
[1733058647577,0.28581177,97139.0,97138.0,0.0087262]
[1733058647790,0.29353384,97139.0,97138.0,0.0087262]
[1733058651720,0.29353384,97139.0,97138.0,0.0090262]
[1733058652146,0.29053384,97139.0,97138.0,0.0090262]
[1733058652568,0.29176373,97139.0,97138.0,0.0090262]
[1733058658660,0.29262733,97139.0,97138.0,0.0090262]
[1733058664204,0.29262733,97139.0,97138.0,0.0080262]
[1733058664405,0.29262733,97139.0,97138.0,2e-07]
[1733058664888,0.3290655,97139.0,97138.0,2e-07]
[1733058665325,0.29262733,97139.0,97138.0,2e-07]
[1733058665754,0.39647254,97139.0,97138.0,2e-07]
[1733058666647,0.39547254,97139.0,97138.0,2e-07]
[1733058666887,0.39647254,97139.0,97138.0,2e-07]
[1733058670206,0.41259488,97139.0,97138.0,2e-07]
[1733058670414,0.41259488,97139.0,97138.0,4e-07]
[1733058674748,0.07964967,97139.0,97138.0,4e-07]
[1733058674954,0.01740552,97139.0,97138.0,4e-07]
[1733058684694,0.10740552,97141.0,97138.0,4e-07]
[1733058684903,0.15211212,97139.0,97138.0,4e-07]
[1733058685110,0.15137292,97139.0,97138.0,4e-07]
[1733058685315,0.15348504,97139.0,97138.0,4e-07]
[1733058690871,0.15348504,97139.0,97138.0,4e-07]
[1733058691354,0.38573025,97139.0,97138.0,4e-07]
[1733058691600,0.38435733,97139.0,97138.0,4e-07]
[1733058695557,0.28151212,97139.0,97138.0,4e-07]
[1733058695795,0.15211212,97139.0,97138.0,4e-07]
[1733058696052,0.00348504,97139.0,97138.0,4e-07]
[1733058697640,0.15348504,97139.0,97138.0,4e-07]
[1733058713165,0.19848504,97139.0,97138.0,4e-07]
[1733058713393,0.00348504,97139.0,97138.0,0.0775004]
[1733058714976,0.15348504,97139.0,97138.0,0.0815004]
[1733058727084,0.15211212,97139.0,97138.0,0.0815004]
[1733058728194,0.15348504,97139.0,97138.0,0.0815004]
[1733058734088,0.15211212,97139.0,97138.0,0.0815004]
[1733058738300,0.15348504,97139.0,97138.0,0.0815004]
[1733058739403,0.15211212,97139.0,97138.0,0.0815004]
[1733058741163,0.00211212,97139.0,97138.0,0.23284561]
[1733058741602,0.20405886,97142.0,97139.0,0.0803]
[1733058741820,0.20405886,97142.0,97140.0,0.10284521]
[1733058742050,0.205878,97145.0,97141.0,0.0803]
[1733058742289,0.20588,97144.0,97142.0,0.10284521]
[1733058744706,0.00228227,97143.0,97142.0,0.10284521]
[1733058744933,0.00228227,97143.0,97142.0,0.11484521]
[1733058745610,0.00228227,97143.0,97142.0,0.10284521]
[1733058746039,0.00228227,97143.0,97142.0,0.11584521]
[1733058748023,0.00228227,97143.0,97142.0,0.11484521]
[1733058752385,0.00314577,97143.0,97142.0,0.11484521]
[1733058764577,0.00314577,97143.0,97142.0,0.11657221]
[1733058767113,0.0008635,97143.0,97142.0,0.49567816]
[1733058767323,0.0008635,97143.0,97142.0,0.52596215]
[1733058767979,0.0008635,97143.0,97142.0,0.52196215]
[1733058768194,0.0008635,97143.0,97142.0,0.51296215]
[1733058768432,0.0008635,97143.0,97142.0,0.51996215]
[1733058768641,0.0008635,97143.0,97142.0,0.52896215]
[1733058782809,0.0008635,97143.0,97142.0,0.51896215]
[1733058783021,0.0008635,97143.0,97142.0,0.52896215]
[1733058783241,0.0008635,97143.0,97142.0,0.51896215]
[1733058783489,0.0008635,97143.0,97142.0,0.52896215]
[1733058783695,0.0008635,97143.0,97142.0,0.51896215]
[1733058783931,0.0008635,97143.0,97142.0,0.52896215]
[1733058784775,0.0008635,97143.0,97142.0,0.31307815]
[1733058784982,0.0008635,97143.0,97142.0,0.32307815]
[1733058788850,0.0008635,97143.0,97142.0,0.31307815]
[1733058789339,0.0008635,97143.0,97142.0,0.32307815]
[1733058789554,0.0008635,97143.0,97142.0,0.31307815]
[1733058789768,0.0008635,97143.0,97142.0,0.32307815]
[1733058789979,0.0008635,97143.0,97142.0,0.31307815]
[1733058792244,0.0008635,97143.0,97142.0,0.32307815]
[1733058798930,0.0008635,97143.0,97142.0,0.31307815]
[1733058799161,0.0008635,97143.0,97142.0,0.32307815]
[1733058799591,0.0008635,97143.0,97142.0,0.31307815]
[1733058800017,0.0008635,97143.0,97142.0,0.32307815]
[1733058800246,0.0008635,97143.0,97142.0,0.31307815]
[1733058800711,0.0008635,97143.0,97142.0,0.32307815]
[1733058803588,0.0002,97149.0,97148.0,0.349071]
[1733058803803,0.0002,97149.0,97148.0,0.48402215]
[1733058804007,0.00253482,97149.0,97148.0,0.48402215]
[1733058804203,0.0002,97149.0,97148.0,0.48402215]
[1733058805113,0.0002,97149.0,97148.0,0.49302215]
[1733058805774,0.22924923,97151.0,97150.0,0.01]
[1733058805985,0.22924923,97151.0,97150.0,0.25727274]
[1733058806196,0.23158588,97151.0,97150.0,0.25545115]
[1733058806405,0.22924923,97151.0,97150.0,0.25545115]
[1733058806612,0.23158588,97151.0,97150.0,0.25545115]
[1733058807756,0.23158588,97151.0,97150.0,0.26445115]
[1733058808206,0.22924923,97151.0,97150.0,0.26445115]
[1733058808695,0.23159021,97151.0,97150.0,0.27345115]
[1733058812325,0.23245381,97151.0,97150.0,0.27345115]
[1733058815806,0.23245381,97151.0,97150.0,0.17295115]
[1733058816261,0.23011283,97151.0,97150.0,0.17295115]
[1733058816721,0.23245634,97151.0,97150.0,0.17295115]
[1733058817376,0.23245634,97151.0,97150.0,0.19595115]
[1733058817811,0.23011283,97151.0,97150.0,0.19595115]
[1733058818247,0.23245263,97151.0,97150.0,0.19595115]
[1733058820640,0.23245263,97151.0,97150.0,0.18595115]
[1733058820860,0.23245263,97151.0,97150.0,0.19595115]
[1733058821073,0.23011283,97151.0,97150.0,0.19595115]
[1733058821484,0.23011283,97151.0,97150.0,0.18595115]
[1733058821619,0.23245249,97151.0,97150.0,0.18595115]
[1733058821855,0.23011283,97151.0,97150.0,0.19595115]
[1733058822041,0.23245249,97151.0,97150.0,0.19595115]
[1733058822472,0.23245249,97151.0,97150.0,0.20595115]
[1733058822850,0.23011283,97151.0,97150.0,0.20777287]
[1733058823254,0.23245249,97151.0,97150.0,0.20777287]
[1733058823473,0.23245249,97151.0,97150.0,0.20595115]
[1733058823895,0.23011283,97151.0,97150.0,0.20595115]
[1733058824326,0.23245249,97151.0,97150.0,0.20595115]
[1733058824910,0.23245249,97151.0,97150.0,0.53671815]
[1733058825456,0.23011283,97151.0,97150.0,0.53671815]
[1733058825955,0.23011283,97151.0,97150.0,0.52771815]
[1733058826134,0.23011283,97151.0,97150.0,0.53671815]
[1733058826355,0.23011283,97151.0,97150.0,0.52771815]
[1733058826975,0.23011283,97151.0,97150.0,0.53671815]
[1733058830385,0.23011283,97151.0,97150.0,0.52771815]
[1733058830819,0.23011283,97151.0,97150.0,0.53671815]
[1733058831024,0.23011283,97151.0,97150.0,0.52771815]
[1733058831457,0.23011283,97151.0,97150.0,0.53671815]
[1733058831691,0.23011283,97151.0,97150.0,0.48981815]
[1733058831895,0.23011283,97151.0,97150.0,0.48081815]
[1733058832224,0.23011283,97151.0,97150.0,0.48981815]
[1733058832692,0.23011283,97151.0,97150.0,0.47181815]
[1733058832909,0.23011283,97151.0,97150.0,0.48081815]
[1733058833119,0.23011283,97151.0,97150.0,0.48981815]
[1733058837654,0.23011283,97151.0,97150.0,0.49154515]
[1733058840201,0.23011283,97151.0,97150.0,0.28567815]
[1733058840431,0.23011283,97151.0,97150.0,0.20767815]
[1733058847010,0.23011283,97151.0,97150.0,0.2094998]
[1733058851514,0.23011283,97151.0,97150.0,0.2868998]
[1733058851731,0.23011283,97151.0,97150.0,0.28507815]
[1733058864954,0.23011283,97151.0,97150.0,0.27607815]
[1733058865401,0.23011283,97151.0,97150.0,0.28507815]
[1733058865631,0.23011283,97151.0,97150.0,0.20767815]
[1733058865852,0.23011283,97151.0,97150.0,0.19867815]
[1733058866072,0.23011283,97151.0,97150.0,0.18967815]
[1733058866300,0.23011283,97151.0,97150.0,0.20767815]
[1733058866751,0.23011283,97151.0,97150.0,0.18967815]
[1733058866976,0.23011283,97151.0,97150.0,0.19867815]
[1733058867236,0.23011283,97151.0,97150.0,0.20049981]
[1733058868340,0.23011283,97151.0,97150.0,0.20949981]
[1733058868708,0.23011283,97151.0,97150.0,0.20049981]
[1733058868858,0.23011283,97151.0,97150.0,0.20949981]
[1733058869310,0.23011283,97151.0,97150.0,0.20049981]
[1733058869658,0.23011283,97151.0,97150.0,0.20949981]
[1733058870450,0.23011283,97151.0,97150.0,0.75473625]
[1733058870672,0.23011283,97151.0,97150.0,0.75291459]
[1733058870877,0.23011283,97151.0,97150.0,0.20767815]
[1733058871074,0.23011283,97151.0,97150.0,0.20949982]
[1733058872254,0.23011283,97151.0,97150.0,0.20049982]
[1733058873175,0.19792987,97151.0,97150.0,0.19867815]
[1733058873383,0.19792987,97151.0,97150.0,0.20767815]
[1733058873585,0.20000801,97151.0,97150.0,0.19867815]
[1733058873907,0.20001434,97151.0,97150.0,0.20767815]
[1733058875377,0.19792987,97151.0,97150.0,0.19767815]
[1733058875612,0.32752987,97151.0,97150.0,0.19767815]
[1733058875830,0.32960948,97151.0,97150.0,0.20767815]
[1733058876083,0.32960948,97151.0,97150.0,0.19767815]
[1733058876270,0.32960948,97151.0,97150.0,0.18867815]
[1733058876484,0.32960948,97151.0,97150.0,0.19867815]
[1733058876968,0.32960948,97151.0,97150.0,0.20767815]
[1733058877357,0.32752987,97151.0,97150.0,0.20767815]
[1733058877799,0.32986741,97151.0,97150.0,0.20767815]
[1733058884238,0.32986741,97151.0,97150.0,0.19767815]
[1733058884441,0.32752987,97151.0,97150.0,0.19767815]
[1733058884713,0.32960838,97151.0,97150.0,0.19767815]
[1733058885144,0.32960838,97151.0,97150.0,0.20767815]
[1733058885465,0.32960838,97151.0,97150.0,0.19767815]
[1733058888103,0.24720838,97151.0,97150.0,0.19767815]
[1733058895581,0.20000838,97151.0,97150.0,0.19767815]
[1733058897263,0.20000838,97151.0,97150.0,0.54276694]
[1733058897468,0.20000838,97151.0,97150.0,0.54094515]
[1733058897607,0.19792987,97151.0,97150.0,0.54094515]
[1733058899532,0.2000105,97151.0,97150.0,1.08691736]
[1733058899961,0.19792987,97151.0,97150.0,1.08691736]
[1733058902724,0.19792987,97151.0,97150.0,0.54094515]
[1733058902938,0.19792987,97151.0,97150.0,1.08691736]
[1733058904355,0.19792987,97151.0,97150.0,0.54094515]
[1733058905120,0.20051122,97151.0,97150.0,0.54094515]
[1733058907332,0.20051122,97151.0,97150.0,1.08670461]
[1733058907709,0.19792987,97151.0,97150.0,1.07770461]
[1733058908136,0.19792987,97151.0,97150.0,1.08670461]
[1733058908318,0.19792987,97151.0,97150.0,1.07770461]
[1733058908519,0.19792987,97151.0,97150.0,1.06870461]
[1733058908747,0.19792987,97151.0,97150.0,1.07770461]
[1733058908959,0.19792987,97151.0,97150.0,1.08670461]
[1733058910979,0.19792987,97151.0,97150.0,0.54094515]
[1733058911385,0.20051148,97151.0,97150.0,0.54094515]
[1733058912030,0.20051148,97151.0,97150.0,0.49244515]
[1733058913542,0.19792987,97151.0,97150.0,0.49244515]
[1733058914697,0.19792987,97151.0,97150.0,0.41354515]
[1733058931128,0.19792987,97151.0,97150.0,0.20767815]
[1733058931364,0.19792987,97151.0,97150.0,0.18467815]
[1733058931594,0.32352987,97151.0,97150.0,0.17467815]
[1733058932077,0.32611673,97151.0,97150.0,0.17467815]
[1733058932314,0.32611673,97151.0,97150.0,0.16567815]
[1733058932531,0.32611673,97151.0,97150.0,0.17467815]
[1733058933010,0.32611673,97151.0,97150.0,0.19767815]
[1733058933676,0.32611673,97151.0,97150.0,0.17967815]
[1733058934225,0.32611673,97151.0,97150.0,0.19767815]
[1733058934444,0.32611673,97151.0,97150.0,0.17967815]
[1733058934890,0.32611673,97151.0,97150.0,0.19767815]
[1733058935600,0.32611673,97151.0,97150.0,0.18867815]
[1733058936931,0.32611673,97151.0,97150.0,0.19767815]
[1733058943551,0.24671673,97151.0,97150.0,0.19767815]
[1733058947052,0.20051673,97151.0,97150.0,0.20767815]
[1733058947688,0.19792987,97151.0,97150.0,0.19867815]
[1733058947914,0.19792987,97151.0,97150.0,0.18967815]
[1733058948117,0.19792987,97151.0,97150.0,0.19767815]
[1733058948330,0.20051223,97151.0,97150.0,0.20667815]
[1733058948560,0.20051223,97151.0,97150.0,0.19767815]
[1733058949007,0.20051223,97151.0,97150.0,0.20667815]
[1733058949211,0.19792987,97151.0,97150.0,0.20667815]
[1733058949418,0.19792987,97151.0,97150.0,0.19867815]
[1733058949646,0.19792987,97151.0,97150.0,0.20667815]
[1733058949851,0.20051223,97151.0,97150.0,0.20667815]
[1733058955990,0.20051223,97151.0,97150.0,0.20849997]
[1733058956200,0.20051223,97151.0,97150.0,0.20667815]
[1733058956426,0.19792987,97151.0,97150.0,0.20667815]
[1733058956874,0.19792987,97151.0,97150.0,0.25317815]
[1733058957096,0.19792987,97151.0,97150.0,0.32857815]
[1733058957531,0.16574834,97151.0,97150.0,0.32857815]
[1733058963858,0.16574834,97151.0,97150.0,0.87416858]
[1733058965149,0.16574834,97151.0,97150.0,0.86516858]
[1733058965358,0.16574834,97151.0,97150.0,0.85716858]
[1733058965532,0.16574834,97151.0,97150.0,0.86616858]
[1733058966233,0.16574834,97151.0,97150.0,0.87516858]
[1733058966646,0.16574834,97151.0,97150.0,0.86616858]
[1733058967053,0.16574834,97151.0,97150.0,0.32057815]
[1733058967288,0.16574834,97151.0,97150.0,0.87516858]
[1733058968130,0.16574834,97151.0,97150.0,0.32957815]
[1733058969427,0.16574834,97151.0,97150.0,0.28307815]
[1733058969660,0.16574834,97151.0,97150.0,0.20767815]
[1733058969876,0.16574834,97151.0,97150.0,0.20949985]
[1733058970115,0.16574834,97151.0,97150.0,0.20767815]
[1733058971449,0.16574834,97151.0,97150.0,0.33087815]
[1733058974231,0.16574834,97151.0,97150.0,0.20767815]
[1733058974396,0.16574834,97151.0,97150.0,0.20949983]
[1733058976075,0.16574834,97151.0,97150.0,0.33087815]
[1733058984727,0.10782973,97151.0,97150.0,0.33087815]
[1733058985143,0.10782973,97151.0,97150.0,0.34087815]
[1733058986391,0.07198306,97151.0,97150.0,0.34087815]
[1733058987432,0.07198306,97151.0,97150.0,0.32287815]
[1733058987847,0.07198306,97151.0,97150.0,0.34087815]
[1733058988063,0.07198306,97151.0,97150.0,0.88563967]
[1733058991491,0.07198306,97151.0,97150.0,0.34087815]
[1733058991606,0.07198306,97151.0,97150.0,0.88557295]
[1733058991849,0.07198306,97151.0,97150.0,0.34087815]
[1733058993115,0.07198306,97151.0,97150.0,0.49087815]
[1733058994890,0.01406742,97151.0,97150.0,0.49087815]
[1733058995561,0.00038437,97160.0,97159.0,0.389448]
[1733058995772,0.00038437,97160.0,97159.0,0.52439915]
[1733058997041,0.00038437,97160.0,97159.0,0.48469915]
[1733058998108,0.00038437,97160.0,97159.0,0.49369915]
[1733058998533,0.00038437,97160.0,97159.0,0.41179915]
[1733058998951,0.00124797,97160.0,97159.0,0.41179915]
[1733058999157,0.00124797,97160.0,97159.0,0.40279915]
[1733058999797,0.00124797,97160.0,97159.0,0.39379915]
[1733059000166,0.00124797,97160.0,97159.0,0.40279915]
[1733059000368,0.00124797,97160.0,97159.0,0.39379915]
[1733059000575,0.00124797,97160.0,97159.0,0.40279915]
[1733059004865,0.00124797,97160.0,97159.0,0.41398612]
[1733059010183,0.00137292,97197.0,97183.0,0.01]
[1733059010390,0.047,97210.0,97183.0,0.14766603]
[1733059010596,0.047,97210.0,97183.0,0.17977197]
[1733059011241,0.047,97210.0,97183.0,0.73418947]
[1733059011444,0.047,97210.0,97183.0,0.18795115]
[1733059011663,0.00145861,97184.0,97183.0,0.18977186]
[1733059012354,0.00157292,97229.0,97188.0,0.1074]
[1733059012562,0.00025954,97189.0,97188.0,0.44067169]
[1733059012767,0.00025954,97189.0,97188.0,0.43885115]
[1733059013824,0.0478635,97219.0,97189.0,0.03]
[1733059014046,0.0478635,97219.0,97189.0,1.06569669]
[1733059014268,0.0478635,97219.0,97189.0,1.06387613]
[1733059014491,0.0478635,97219.0,97189.0,1.08687613]
[1733059014766,0.0478635,97219.0,97189.0,0.54373515]
[1733059014992,0.0008635,97219.0,97208.0,0.01]
[1733059015215,0.0008635,97219.0,97208.0,0.14584521]
[1733059015430,0.0008635,97219.0,97208.0,0.17795115]
[1733059015641,0.0458,97209.0,97208.0,0.17795115]
[1733059015895,0.047731,97209.0,97208.0,0.17795115]
[1733059016353,0.047731,97209.0,97208.0,0.18695115]
[1733059016810,0.0458,97209.0,97208.0,0.18695115]
[1733059017064,0.0002,97209.0,97208.0,0.18695115]
[1733059017316,0.0002,97209.0,97208.0,0.18877181]
[1733059018906,0.0443,97217.0,97216.0,0.248727]
[1733059019134,0.0443,97217.0,97216.0,0.35157221]
[1733059020438,0.0443,97217.0,97216.0,0.36057221]
[1733059020699,0.0443,97217.0,97216.0,0.15484521]
[1733059023671,0.0451636,97217.0,97216.0,0.15484521]
[1733059024287,0.0008636,97217.0,97216.0,0.15484521]
[1733059024505,0.0008636,97217.0,97216.0,0.15666577]
[1733059024929,2.71e-05,97219.0,97218.0,0.02]
[1733059025140,2.71e-05,97219.0,97218.0,0.12466565]
[1733059025447,2.71e-05,97219.0,97218.0,0.14766565]
[1733059025991,2.71e-05,97219.0,97218.0,0.15666565]
[1733059026203,0.00020567,97219.0,97218.0,0.18850997]
[1733059026408,0.00020567,97219.0,97218.0,0.17950997]
[1733059026609,0.00020567,97219.0,97218.0,0.18850997]
[1733059027324,0.00020567,97219.0,97218.0,0.19750997]
[1733059028478,0.00020567,97219.0,97218.0,0.17950997]
[1733059028910,0.0002,97229.0,97221.0,0.043]
[1733059029098,0.0002,97229.0,97221.0,0.17950988]
[1733059030596,0.0002,97229.0,97221.0,0.18850988]
[1733059031459,0.0002,97229.0,97221.0,0.26910988]
[1733059031642,0.0002,97229.0,97221.0,0.26728953]
[1733059034441,0.0002,97229.0,97221.0,0.18668953]
[1733059034671,0.0002,97229.0,97221.0,0.18850985]
[1733059038287,0.0457,97228.0,97221.0,0.18850985]
[1733059038954,0.1219,97228.0,97221.0,0.18850985]
[1733059039838,0.09060505,97228.0,97227.0,0.01]
[1733059040047,0.09060505,97228.0,97227.0,0.13584521]
[1733059040265,0.0002,97229.0,97228.0,0.02]
[1733059040474,0.0002,97229.0,97228.0,0.17768953]
[1733059040683,0.0002,97229.0,97228.0,0.16768953]
[1733059040894,0.0002,97229.0,97228.0,0.17768953]
[1733059042268,0.0002,97229.0,97228.0,0.18668953]
[1733059042976,0.0459,97229.0,97228.0,0.18668953]
[1733059044357,0.0002,97229.0,97228.0,0.18668953]
[1733059045147,0.0002,97229.0,97228.0,0.26938953]
[1733059046516,0.0002,97229.0,97228.0,0.18668953]
[1733059046740,0.001063,97229.0,97228.0,0.18668953]
[1733059050431,0.001063,97229.0,97228.0,0.17668953]
[1733059050673,0.00243592,97229.0,97228.0,0.17668953]
[1733059050869,0.53621674,97230.0,97228.0,0.17668953]
[1733059051088,0.53621674,97230.0,97229.0,0.16768953]
[1733059052636,0.53621674,97230.0,97229.0,0.17668953]
[1733059053651,0.53621674,97230.0,97229.0,0.16768953]
[1733059054091,0.53621674,97230.0,97229.0,0.17668953]
[1733059057071,0.53621674,97230.0,97229.0,0.16768953]
[1733059057328,0.53621674,97230.0,97229.0,0.17668953]
[1733059057539,0.53621674,97230.0,97229.0,0.16768953]
[1733059057965,0.53621674,97230.0,97229.0,0.17668953]
[1733059059984,0.53707964,97230.0,97229.0,0.16768953]
[1733059060400,0.53707964,97230.0,97229.0,0.17668953]
[1733059061243,0.58267964,97230.0,97229.0,0.17668953]
[1733059062433,0.53707964,97230.0,97229.0,0.17668953]
[1733059063775,0.50492058,97230.0,97229.0,0.17668953]
[1733059070857,0.50492058,97230.0,97229.0,0.26238953]
[1733059072039,0.50492058,97230.0,97229.0,0.26411533]
[1733059076594,0.76912458,97230.0,97229.0,0.26411533]
[1733059079249,0.76912458,97230.0,97229.0,0.30951533]
[1733059081290,0.75966797,97230.0,97229.0,0.30951533]
[1733059081938,0.75966797,97230.0,97229.0,0.85265631]
[1733059082148,0.75966797,97230.0,97229.0,0.84365631]
[1733059082378,0.74556396,97230.0,97229.0,0.85365631]
[1733059082589,0.72405534,97230.0,97229.0,0.31951533]
[1733059082801,0.72405534,97230.0,97229.0,0.31051533]
[1733059083007,0.72405534,97230.0,97229.0,0.30051533]
[1733059083208,0.72405534,97230.0,97229.0,0.30951533]
[1733059084139,0.66875627,97230.0,97229.0,0.85267301]
[1733059084317,0.65817826,97230.0,97229.0,0.30951533]
[1733059084780,0.62430546,97230.0,97229.0,0.30951533]
[1733059086355,0.61372745,97230.0,97229.0,0.30951533]
[1733059088360,0.06532745,97230.0,97229.0,0.30951533]
[1733059089159,0.04981304,97230.0,97229.0,0.30951533]
[1733059089740,0.04981304,97230.0,97229.0,0.30961833]
[1733059093074,0.12831304,97230.0,97229.0,0.14551833]
[1733059093300,0.12831304,97230.0,97229.0,0.12367401]
[1733059094827,0.12831304,97230.0,97229.0,0.13767401]
[1733059095102,0.12917594,97230.0,97229.0,0.13767401]
[1733059095320,0.12917594,97230.0,97229.0,0.14667401]
[1733059095548,0.12917594,97230.0,97229.0,0.13767401]
[1733059095930,0.12917594,97230.0,97229.0,0.14667401]
[1733059096185,0.12917594,97230.0,97229.0,0.13767401]
[1733059096616,0.12917594,97230.0,97229.0,0.35237301]
[1733059097218,0.12917594,97230.0,97229.0,0.14667401]
[1733059098290,0.12917594,97230.0,97229.0,0.15567401]
[1733059098517,0.12917594,97230.0,97229.0,0.13767401]
[1733059098866,0.12917594,97230.0,97229.0,0.14667401]
[1733059105626,0.05067594,97230.0,97229.0,0.14667401]
[1733059105835,0.05067594,97230.0,97229.0,0.13667401]
[1733059106048,0.05067594,97230.0,97229.0,0.14667401]
[1733059110533,0.05067594,97230.0,97229.0,0.25466152]
[1733059110768,0.01851907,97230.0,97229.0,0.31036152]
[1733059117391,0.01851907,97230.0,97229.0,0.46036152]
[1733059117605,0.0145202,97268.0,97240.0,0.3248]
[1733059117820,0.0145202,97268.0,97240.0,0.45953272]
[1733059118255,0.0145202,97268.0,97240.0,0.44953272]
[1733059118669,0.0145202,97268.0,97240.0,0.45953272]
[1733059119100,0.0145202,97268.0,97240.0,0.45853272]
[1733059119366,0.0145202,97268.0,97240.0,0.44953272]
[1733059119590,0.0145202,97268.0,97240.0,0.45853272]
[1733059120675,0.0145202,97268.0,97257.0,0.033]
[1733059120921,0.0145202,97268.0,97257.0,0.37337272]
[1733059121984,0.00092312,97258.0,97257.0,0.37337272]
[1733059122243,0.00092312,97258.0,97257.0,0.38237272]
[1733059122468,0.01044332,97268.0,97267.0,0.033]
[1733059122683,0.01050281,97268.0,97267.0,0.13584521]
[1733059124326,0.01050281,97268.0,97267.0,0.14484521]
[1733059126842,0.01050281,97268.0,97267.0,0.13584521]
[1733059127481,0.01050281,97268.0,97267.0,0.13484521]
[1733059127693,0.01050281,97268.0,97267.0,0.14384521]
[1733059127915,0.01050281,97268.0,97267.0,0.15384521]
[1733059128152,0.01050281,97268.0,97267.0,0.12584521]
[1733059128359,0.01050281,97268.0,97267.0,0.13484521]
[1733059128583,0.01136661,97268.0,97267.0,0.12584521]
[1733059128812,0.01136661,97268.0,97267.0,0.13584521]
[1733059129025,0.01136661,97268.0,97267.0,0.14484521]
[1733059130110,0.01136661,97268.0,97267.0,0.13584521]
[1733059130552,0.01136661,97268.0,97267.0,0.14484521]
[1733059131110,0.01136661,97268.0,97267.0,0.15384521]
[1733059131556,0.01136661,97268.0,97267.0,0.13584521]
[1733059132455,0.01136661,97268.0,97267.0,0.14484521]
[1733059133787,0.01136661,97268.0,97267.0,0.13584521]
[1733059133915,0.01136661,97268.0,97267.0,0.14484521]
[1733059134768,0.01136661,97268.0,97267.0,0.13584521]
[1733059135018,0.01136661,97268.0,97267.0,0.14484521]
[1733059135411,0.01136661,97268.0,97267.0,0.13584521]
[1733059135615,0.01136661,97268.0,97267.0,0.14484521]
[1733059135863,0.01136661,97268.0,97267.0,0.13443581]
[1733059136065,0.01136661,97268.0,97267.0,0.14443581]
[1733059136798,0.01136661,97268.0,97267.0,0.13543581]
[1733059137259,0.01136661,97268.0,97267.0,0.14443581]
[1733059137462,0.01136661,97268.0,97267.0,0.22753581]
[1733059137932,0.01136661,97268.0,97267.0,0.21753581]
[1733059138277,0.01136661,97268.0,97267.0,0.20853581]
[1733059138483,0.01136661,97268.0,97267.0,0.21753581]
[1733059138701,0.01136661,97268.0,97267.0,0.20853581]
[1733059138913,0.04436438,97280.0,97267.0,0.25036129]
[1733059139135,0.04436438,97280.0,97268.0,0.34146221]
[1733059139368,0.04436438,97280.0,97269.0,0.033]
[1733059139500,0.04436438,97280.0,97269.0,0.16767423]
[1733059139947,0.04436438,97280.0,97269.0,0.17949377]
[1733059140749,0.04436438,97280.0,97269.0,0.18849377]
[1733059141433,0.04436438,97280.0,97269.0,0.17949377]
[1733059141761,0.04436438,97280.0,97269.0,0.18849377]
[1733059143164,0.04436438,97280.0,97269.0,0.17949377]
[1733059143688,0.04436438,97280.0,97269.0,0.18849377]
[1733059144074,0.04436438,97280.0,97269.0,0.19749377]
[1733059144286,0.04436438,97280.0,97269.0,0.17949377]
[1733059144739,0.04436438,97280.0,97269.0,0.18849377]
[1733059144947,0.04436438,97280.0,97269.0,0.17949377]